bitfinex-derivatives/quotes_ETHF0:USTF0_20250213
["timestamp","ask_amount","ask_price","bid_price","bid_amount"]
[1739429318536,3.81562586,2684.1,2684.0,3.2078]
[1739429318754,3.81562586,2684.1,2683.6,3.2078]
[1739429318935,3.81562586,2684.1,2683.8,0.00558316]
[1739429319235,3.95287,2683.9,2683.8,0.00558316]
[1739429319634,3.2078,2683.9,2683.8,0.00558316]
[1739429319835,3.2078,2683.9,2683.8,0.75068316]
[1739429321032,3.2078,2683.9,2683.8,0.00558316]
[1739429321232,3.2078,2683.9,2683.8,0.75068316]
[1739429322241,4.56057586,2684.4,2683.8,0.75068316]
[1739429322242,4.56057586,2684.4,2683.8,0.00558316]
[1739429322440,3.2078,2684.6,2683.9,3.2078]
[1739429322738,3.81562586,2684.4,2683.8,0.00558316]
[1739429322945,0.74496,2684.3,2683.8,0.00558316]
[1739429323144,0.74496,2684.3,2683.9,0.74505]
[1739429323437,4.56057586,2684.4,2684.0,0.74502]
[1739429323840,4.56057586,2684.4,2683.9,1.992]
[1739429324036,3.81562586,2684.4,2683.9,1.992]
[1739429324235,0.5647,2684.5,2683.9,1.992]
[1739429324841,0.5647,2684.5,2684.0,0.74503]
[1739429325041,0.5647,2684.5,2683.9,1.992]
[1739429325545,0.5647,2684.5,2684.4,0.74493]
[1739429326046,0.5647,2684.5,2684.1,3.2078]
[1739429326341,3.81562586,2684.4,2684.1,0.74499]
[1739429326646,0.5647,2684.5,2684.0,1.988]
[1739429326844,0.5647,2684.5,2684.4,0.74493]
[1739429328536,0.00558316,2684.9,2684.1,3.2078]
[1739429328740,0.00558316,2684.9,2684.5,3.2078]
[1739429328941,0.00558316,2684.9,2684.2,3.2078]
[1739429329139,0.74492,2684.5,2684.2,0.74498]
[1739429329342,0.74494,2684.4,2684.1,0.745]
[1739429329540,3.81562586,2684.4,2684.0,1.983]
[1739429329738,3.2078,2684.3,2684.0,1.983]
[1739429329945,0.74498,2684.3,2684.0,2.72803]
[1739429330145,3.81562586,2684.4,2684.0,1.983]
[1739429330344,1.1037,2684.5,2684.1,0.74501]
[1739429330544,1.1037,2684.5,2684.0,1.983]
[1739429330743,3.81562586,2684.4,2683.9,3.2078]
[1739429330947,3.2078,2684.3,2683.8,0.00558316]
[1739429331140,0.74503,2684.1,2683.8,0.75066316]
[1739429331342,3.2078,2684.3,2683.8,0.00558316]
[1739429331648,0.74503,2684.1,2683.8,0.75066316]
[1739429331849,3.2078,2684.3,2683.8,1.98058316]
[1739429332446,0.74501,2684.2,2683.9,0.74506]
[1739429332652,0.74503,2684.1,2683.9,0.74506]
[1739429332847,3.2078,2684.3,2683.8,1.97758316]
[1739429333047,0.74507,2683.9,2683.8,0.00558316]
[1739429333554,0.74507,2683.9,2683.2,3.2078]
[1739429333555,0.74516,2683.6,2683.3,0.74524]
[1739429333850,0.5471,2683.9,2683.2,5.1778]
[1739429334056,3.81562586,2683.8,2683.2,5.1778]
[1739429334447,0.5471,2683.9,2683.2,5.1778]
[1739429334649,0.74514,2683.7,2683.4,0.7452]
[1739429334851,0.5471,2683.9,2683.2,5.18338316]
[1739429335154,0.5471,2683.9,2683.2,0.00558316]
[1739429336452,0.74516,2683.6,2683.3,0.74524]
[1739429336652,0.74516,2683.6,2683.3,0.74522]
[1739429336855,0.5847,2683.8,2683.2,0.00558316]
[1739429337054,3.2078,2683.7,2683.2,1.96758316]
[1739429337355,3.95294,2683.7,2683.4,0.7452]
[1739429337652,3.2078,2683.7,2683.4,0.74521]
[1739429337952,3.2078,2683.7,2683.5,0.74517]
[1739429338150,0.74517,2683.6,2683.3,2.70423]
[1739429338348,3.2078,2683.7,2683.3,1.959]
[1739429338650,0.74524,2683.3,2683.2,0.00558316]
[1739429338955,0.00558316,2683.5,2683.2,0.00558316]
[1739429339257,0.00558316,2683.5,2683.4,0.74521]
[1739429340856,0.00558316,2683.5,2683.4,41.54521]
[1739429341653,0.00558316,2683.5,2683.4,43.49621]
[1739429342460,0.74491,2684.5,2684.2,0.74499]
[1739429342658,3.95269,2684.6,2684.3,0.74494]
[1739429342952,4.3356,2684.9,2684.8,0.74482]
[1739429343254,4.3356,2684.9,2684.2,1.86248]
[1739429343255,3.2078,2685.2,2684.6,1.952]
[1739429343451,0.74478,2685.0,2684.6,1.95758316]
[1739429343652,0.74481,2684.9,2684.6,1.95758316]
[1739429343849,0.00558316,2685.1,2684.6,1.95758316]
[1739429344052,0.74485,2684.7,2684.6,1.95758316]
[1739429344250,7.63125172,2684.7,2682.7,3.2078]
[1739429344446,3.81562586,2683.5,2682.3,3.2078]
[1739429344653,0.5586,2683.4,2682.4,3.2078]
[1739429344862,0.5586,2683.4,2682.5,1.972]
[1739429345459,0.00558316,2683.2,2682.7,0.00558316]
[1739429345657,0.00558316,2683.2,2682.7,3.21338316]
[1739429345858,0.00558316,2683.2,2683.0,0.74531]
[1739429346162,0.00558316,2683.2,2683.0,1.97]
[1739429346359,0.00558316,2683.2,2683.1,0.74529]
[1739429346753,0.00558316,2683.2,2683.1,3.95309]
[1739429347061,0.00558316,2683.2,2683.1,9.95309]
[1739429347259,0.5586,2684.1,2683.9,0.74507]
[1739429347463,0.5586,2684.1,2683.1,17.77786616]
[1739429347464,3.2078,2684.2,2683.7,3.81562586]
[1739429347759,3.2078,2684.4,2684.0,0.74503]
[1739429348058,3.95275,2684.4,2684.0,0.74504]
[1739429348257,3.2078,2684.4,2684.0,0.74504]
[1739429348454,0.00558316,2684.5,2684.0,3.2078]
[1739429348769,0.00558316,2684.5,2684.4,0.74493]
[1739429348960,0.00558316,2684.5,2684.4,2.71593]
[1739429349258,3.2078,2685.6,2684.4,16.57795244]
[1739429349460,3.7925,2685.9,2685.0,3.2078]
[1739429349660,3.7925,2685.9,2685.5,0.7446]
[1739429349864,3.7925,2685.9,2685.3,3.2078]
[1739429350253,3.79808316,2685.9,2685.3,0.00558316]
[1739429350656,4.54261316,2685.9,2685.3,0.00558316]
[1739429350863,3.21338316,2685.9,2685.6,0.74458]
[1739429351261,3.21338316,2685.9,2685.7,1.976]
[1739429351455,3.2078,2686.5,2685.8,3.81562586]
[1739429351660,3.2078,2686.5,2686.1,0.74445]
[1739429351962,3.2078,2686.8,2686.2,3.2078]
[1739429352263,4.46909404,2687.9,2686.5,3.2078]
[1739429352466,3.2078,2687.6,2686.8,3.2078]
[1739429352762,0.00558316,2687.5,2687.1,3.2078]
[1739429352959,0.00558316,2687.5,2686.9,1.98158316]
[1739429353261,0.00558316,2687.5,2687.1,3.2078]
[1739429354564,0.00558316,2687.5,2687.1,0.74418]
[1739429354866,0.00558316,2687.5,2687.0,44.0078]
[1739429355063,3.2078,2688.8,2687.4,3.2078]
[1739429355268,3.2078,2688.8,2688.1,3.2078]
[1739429355466,0.74375,2688.7,2688.2,1.986]
[1739429355869,0.74375,2688.7,2687.3,1.1259]
[1739429355870,3.2078,2688.8,2688.3,1.984]
[1739429356165,3.2078,2688.5,2687.9,3.2078]
[1739429356363,0.74382,2688.4,2688.3,0.00558316]
[1739429356568,0.74382,2688.4,2687.6,1.983]
[1739429356569,0.5472,2688.4,2687.6,1.983]
[1739429356870,3.95174,2688.0,2687.6,1.983]
[1739429357167,3.755,2688.4,2687.6,1.983]
[1739429357356,4.49885,2688.4,2687.7,3.9518]
[1739429357560,3.755,2688.4,2687.6,1.983]
[1739429357756,3.2078,2687.8,2687.0,0.74419]
[1739429357966,3.2078,2687.4,2687.1,1.984]
[1739429358163,3.2078,2687.4,2687.1,2.72817]
[1739429358463,3.2078,2687.8,2687.1,7.984]
[1739429358666,3.2078,2687.8,2687.7,0.74402]
[1739429358867,3.2078,2687.8,2687.7,1.989]
[1739429359667,3.2078,2687.8,2687.2,0.00558316]
[1739429359862,3.2078,2687.3,2687.2,0.00558316]
[1739429360164,3.2078,2687.3,2686.1,4.46909404]
[1739429360165,3.2078,2687.3,2686.4,1.991]
[1739429360367,3.2078,2686.9,2686.4,1.991]
[1739429360561,3.2078,2686.9,2686.7,0.74428]
[1739429360760,3.2078,2686.9,2686.6,1.99]
[1739429361059,0.5535,2687.2,2686.6,1.99]
[1739429361263,3.21338316,2687.0,2686.6,1.99]
[1739429361664,3.2078,2686.7,2686.6,1.99]
[1739429362468,3.2078,2686.7,2686.6,7.989]
[1739429362765,3.2078,2686.7,2686.6,8.73332]
[1739429363063,0.00558316,2687.0,2686.9,0.74424]
[1739429363266,0.00558316,2687.0,2686.9,6.74424]
[1739429363967,3.2078,2687.6,2686.9,6.0]
[1739429364159,3.2078,2687.6,2687.4,0.74408]
[1739429364359,3.2078,2687.6,2687.5,1.989]
[1739429364768,3.2078,2687.6,2687.5,2.73307]
[1739429365662,0.00558316,2687.8,2687.5,1.989]
[1739429365963,0.00558316,2687.8,2687.7,0.74402]
[1739429366969,0.00558316,2687.8,2687.7,9.95182]
[1739429367267,0.00558316,2687.8,2687.7,11.21311404]
[1739429367464,0.00558316,2687.8,2687.7,14.42091404]
[1739429367669,0.00558316,2687.8,2687.7,5.21311404]
[1739429367972,0.00558316,2687.8,2687.7,14.42091404]
[1739429368265,3.16e-06,2687.8,2687.7,14.42091404]
[1739429368969,3.16e-06,2687.8,2687.7,19.19586293]
[1739429369465,3.16e-06,2687.8,2687.7,0.74402]
[1739429369663,3.16e-06,2687.8,2687.7,2.72502]
[1739429370566,3.16e-06,2687.8,2687.7,13.19411404]
[1739429370768,3.16e-06,2687.8,2687.7,17.92781743]
[1739429370967,3.16e-06,2687.8,2687.7,18.46601743]
[1739429371871,3.16e-06,2687.8,2687.7,13.73231404]
[1739429372470,3.16e-06,2687.8,2687.7,18.49001328]
[1739429372765,3.16e-06,2687.8,2687.7,18.86281328]
[1739429373070,3.16e-06,2687.8,2687.7,2.72902]
[1739429373272,3.16e-06,2687.8,2687.7,1.985]
[1739429373469,3.16e-06,2687.8,2687.7,2.72902]
[1739429374174,3.16e-06,2687.8,2687.6,19.493]
[1739429374371,3.95183,2687.7,2687.3,0.74411]
[1739429374576,0.00310533,2687.8,2687.5,0.74406]
[1739429374767,0.00310533,2687.8,2687.3,40.8]
[1739429375268,0.74405,2687.6,2687.3,40.8]
[1739429375667,3.9519,2687.4,2687.1,1.985]
[1739429375873,0.5568,2687.3,2687.1,1.985]
[1739429376165,1.1212,2687.3,2687.1,1.985]
[1739429376365,1.86534,2687.3,2687.1,1.985]
[1739429376571,0.74418,2687.1,2686.7,1.982]
[1739429376874,3.2078,2687.0,2686.7,1.982]
[1739429377065,3.2078,2687.0,2686.7,2.72629]
[1739429377474,3.2078,2687.0,2686.8,0.74425]
[1739429377670,3.2078,2687.0,2686.6,1.979]
[1739429377869,3.2078,2687.0,2686.9,0.74424]
[1739429378373,3.2078,2687.0,2686.7,40.8]
[1739429378374,1.1212,2687.3,2686.7,40.8]
[1739429378564,0.5568,2687.3,2686.7,40.8]
[1739429378780,3.2078,2687.6,2686.9,4.46909404]
[1739429379274,3.2078,2687.6,2687.3,0.74412]
[1739429379474,0.00310533,2687.8,2687.5,0.74407]
[1739429379665,0.00310533,2687.8,2687.6,0.74404]
[1739429379862,5.33e-06,2687.8,2687.7,8.42091404]
[1739429380070,3.7763,2688.8,2687.9,0.74394]
[1739429380277,3.7763,2688.8,2687.7,7.67689404]
[1739429380278,3.7763,2688.8,2688.0,2.73093]
[1739429380473,3.2078,2688.5,2688.1,40.8]
[1739429380773,3.2078,2688.5,2688.1,41.5439]
[1739429380970,3.2078,2688.5,2688.1,40.8]
[1739429381169,0.74387,2688.3,2688.1,40.8]
[1739429381365,0.74384,2688.4,2688.1,40.8]
[1739429381567,3.2078,2688.5,2688.1,40.8]
[1739429381763,3.2078,2688.2,2688.1,40.8]
[1739429381968,3.9517,2688.2,2688.0,0.00558316]
[1739429382164,0.5868,2688.1,2688.0,0.00558316]
[1739429382366,1.33071,2688.1,2688.0,0.00558316]
[1739429382566,0.5868,2688.1,2687.6,1.981]
[1739429382780,0.744,2687.8,2687.6,1.981]
[1739429382977,3.95178,2687.9,2687.6,1.981]
[1739429383172,0.74405,2687.6,2687.0,0.74419]
[1739429383380,3.95185,2687.6,2687.3,1.979]
[1739429383867,3.2078,2687.6,2687.2,0.00558316]
[1739429384067,0.5475,2687.5,2687.2,0.00558316]
[1739429384977,1.29158,2687.5,2687.2,0.00558316]
[1739429385176,0.5475,2687.5,2687.2,0.00558316]
[1739429385380,3.2078,2687.3,2687.2,0.00558316]
[1739429385570,3.2078,2687.3,2687.2,0.74974316]
[1739429386177,3.2078,2687.3,2687.2,0.00558316]
[1739429388177,3.95193,2687.3,2687.2,0.00558316]
[1739429388370,3.2078,2687.3,2687.2,0.00558316]
[1739429389078,3.95193,2687.3,2687.2,0.00558316]
[1739429389277,3.2078,2687.3,2687.2,0.00558316]
[1739429389872,3.95193,2687.3,2687.2,0.00558316]
[1739429390271,3.2078,2687.3,2686.9,40.8]
[1739429390472,3.2078,2687.0,2686.9,40.8]
[1739429390875,9.2078,2687.0,2686.1,0.74446]
[1739429391071,3.2078,2686.5,2685.9,1.963]
[1739429391280,0.7445,2686.0,2685.4,1.964]
[1739429391582,3.2078,2686.2,2685.9,0.00558316]
[1739429391783,0.74447,2686.1,2685.9,0.00558316]
[1739429391985,3.2078,2686.2,2685.9,0.00558316]
[1739429392180,0.74448,2686.1,2685.9,0.00558316]
[1739429392483,0.74449,2686.0,2685.9,0.00558316]
[1739429392880,3.2078,2686.2,2685.2,19.49]
[1739429393085,0.74455,2685.8,2685.4,0.74464]
[1739429393382,3.2078,2685.9,2685.7,0.74456]
[1739429393577,3.2078,2685.9,2685.3,1.96]
[1739429393976,3.2078,2685.9,2685.8,0.74454]
[1739429394780,3.2078,2685.9,2685.6,0.74458]
[1739429395187,3.2078,2685.9,2685.7,40.8]
[1739429395687,3.2078,2685.9,2685.3,1.96558316]
[1739429395688,0.74456,2685.8,2685.4,0.74464]
[1739429395885,3.95234,2685.9,2685.4,0.74464]
[1739429396086,0.5745,2685.7,2685.5,40.8]
[1739429396589,0.5745,2685.7,2685.3,1.96258316]
[1739429396886,0.5745,2685.7,2685.6,0.7446]
[1739429397197,0.5745,2685.7,2685.3,1.96258316]
[1739429397381,0.5745,2685.7,2685.6,0.7446]
[1739429397886,0.5745,2685.7,2685.6,41.5446]
[1739429398283,3.2078,2685.9,2685.8,0.74454]
[1739429398988,3.7584,2686.3,2685.6,48.47689404]
[1739429399186,0.00558316,2686.5,2685.9,3.2078]
[1739429399387,0.00558316,2686.5,2686.4,0.74438]
[1739429399888,0.00558316,2686.5,2686.2,0.74441]
[1739429400082,3.21338316,2686.5,2685.6,1.953]
[1739429400283,3.21338316,2686.5,2685.7,1.86144]
[1739429400582,0.00558316,2686.5,2686.4,0.74438]
[1739429401186,0.00558316,2686.5,2686.4,41.54438]
[1739429401389,0.00558316,2686.5,2686.4,40.8]
[1739429401594,0.00558316,2686.5,2685.6,4.46909404]
[1739429401595,0.00558316,2686.5,2685.6,3.2078]
[1739429401785,3.2078,2686.1,2685.8,0.74453]
[1739429402088,3.2078,2686.1,2685.3,0.00558316]
[1739429402292,3.2078,2685.7,2685.4,0.74465]
[1739429402588,3.2078,2685.7,2685.3,0.75025316]
[1739429402884,0.74461,2685.6,2685.3,0.00558316]
[1739429403085,3.2078,2685.7,2685.3,0.00558316]
[1739429403284,3.2078,2685.7,2685.4,0.74466]
[1739429403486,3.2078,2685.7,2685.6,0.7446]
[1739429403681,1.0887,2686.0,2685.3,0.00558316]
[1739429403682,4.2965,2686.0,2685.3,0.00558316]
[1739429403881,0.58508316,2686.5,2686.4,0.74438]
[1739429404285,0.58508316,2686.5,2685.9,1.959]
[1739429404479,0.58508316,2686.5,2686.2,0.74442]
[1739429404687,0.58508316,2686.5,2685.9,1.959]
[1739429404883,0.58508316,2686.5,2686.4,0.74438]
[1739429405077,0.58508316,2686.5,2685.9,5.1668]
[1739429405493,0.58508316,2686.5,2686.4,0.74438]
[1739429405888,0.58508316,2686.5,2685.9,1.959]
[1739429406090,1.32944316,2686.5,2685.9,1.959]
[1739429406391,3.2078,2686.3,2685.9,1.959]
[1739429406593,3.2078,2686.3,2686.1,0.74445]
[1739429406790,0.58508316,2686.5,2686.1,0.74445]
[1739429407192,0.58508316,2686.5,2686.2,0.74442]
[1739429407488,0.58508316,2686.5,2685.9,1.959]
[1739429407693,0.58508316,2686.5,2686.2,0.74443]
[1739429407993,1.32943316,2686.5,2686.2,40.8]
[1739429408191,0.58508316,2686.5,2686.2,40.8]
[1739429408496,1.32945316,2686.5,2686.1,0.74446]
[1739429408811,0.58508316,2686.5,2685.9,1.959]
[1739429408988,0.58508316,2686.5,2686.0,40.8]
[1739429409391,0.58508316,2686.5,2686.4,0.74438]
[1739429409884,0.58508316,2686.5,2686.0,40.8]
[1739429409885,0.00558316,2686.5,2686.0,40.8]
[1739429410091,0.00558316,2686.5,2686.2,0.74442]
[1739429410587,0.00558316,2686.5,2685.9,1.959]
[1739429410782,3.2078,2686.3,2685.9,1.959]
[1739429410983,3.2078,2686.3,2686.2,0.74443]
[1739429411190,3.2078,2686.3,2686.0,0.74449]
[1739429411390,3.2078,2686.3,2686.0,0.74448]
[1739429411593,3.2078,2686.3,2685.9,42.759]
[1739429411896,3.2078,2686.3,2686.0,0.74448]
[1739429412094,3.2078,2686.3,2685.9,42.759]
[1739429412298,3.2078,2686.3,2685.9,43.5035]
[1739429412496,3.2078,2686.3,2686.0,0.74448]
[1739429412996,3.2078,2686.3,2685.9,40.8]
[1739429413189,3.2078,2686.3,2685.7,2.68657]
[1739429413386,3.2078,2686.3,2685.6,0.74458]
[1739429413590,3.2078,2686.3,2685.5,5.1498]
[1739429413789,3.95222,2686.3,2686.0,0.74448]
[1739429414194,3.95222,2686.3,2685.6,1.94]
[1739429414195,3.2078,2686.3,2685.6,1.94]
[1739429414595,3.2078,2686.3,2686.0,0.74446]
[1739429414895,3.2078,2686.3,2686.0,0.74447]
[1739429415098,3.2078,2686.3,2685.6,3.8015]
[1739429415288,3.95222,2686.3,2685.6,3.8015]
[1739429415484,3.2078,2686.3,2685.6,1.94]
[1739429415891,0.74449,2686.0,2685.7,0.74456]
[1739429416194,0.74453,2685.9,2685.6,1.94]
[1739429416390,0.74456,2685.8,2685.7,1.932]
[1739429416591,0.74452,2685.9,2685.7,1.932]
[1739429416786,0.7445,2686.0,2685.7,2.67656]
[1739429417298,0.74448,2686.1,2685.8,0.74453]
[1739429417600,0.74445,2686.2,2685.9,0.74452]
[1739429417801,0.74445,2686.2,2685.9,0.7445]
[1739429417999,3.2078,2686.3,2685.7,1.932]
[1739429418202,0.74446,2686.1,2685.8,0.74453]
[1739429418396,0.5611,2686.4,2685.7,1.932]
[1739429418697,0.74442,2686.3,2686.0,0.74447]
[1739429419395,0.5611,2686.4,2685.7,1.932]
[1739429419592,0.00558316,2686.5,2686.4,0.74438]
[1739429420400,0.00558316,2686.5,2686.3,1.924]
[1739429420602,0.00558316,2686.5,2686.4,0.74438]
[1739429420795,0.00558316,2686.5,2686.3,1.924]
[1739429420996,3.21338316,2686.5,2686.3,1.924]
[1739429421297,9.21338316,2686.5,2685.3,0.00558316]
[1739429421499,3.95245,2685.4,2685.3,0.00558316]
[1739429421906,3.2078,2685.4,2685.3,0.00558316]
[1739429422396,3.95246,2685.4,2685.3,0.00558316]
[1739429423001,3.7541,2685.7,2685.3,0.00558316]
[1739429423200,3.2078,2685.7,2685.5,3.80650397]
[1739429423402,3.2078,2686.4,2685.6,3.78951]
[1739429423704,3.2078,2686.4,2686.0,0.74448]
[1739429424102,3.2078,2686.4,2685.6,6.2489]
[1739429424308,3.2078,2686.1,2685.6,1.928]
[1739429424802,3.95228,2686.1,2685.6,2.67259]
[1739429425006,0.7445,2686.0,2685.6,1.928]
[1739429425402,3.2078,2685.8,2685.3,0.00558316]
[1739429425701,1.86105,2686.3,2685.4,1.928]
[1739429425702,3.95243,2685.5,2685.4,1.928]
[1739429425906,0.74466,2685.4,2685.3,0.00558316]
[1739429426304,3.2078,2685.5,2685.3,0.00558316]
[1739429426610,0.74466,2685.4,2685.3,0.00558316]
[1739429427203,6.0,2685.4,2684.4,3.7673]
[1739429427405,3.2078,2684.9,2684.4,3.2078]
[1739429427705,0.5765,2684.8,2684.5,40.8]
[1739429428298,0.5765,2684.8,2684.5,0.7449]
[1739429428700,0.5765,2684.8,2684.4,5.13838316]
[1739429428897,0.5765,2684.8,2684.6,0.74486]
[1739429429209,0.5765,2684.8,2684.7,0.74485]
[1739429429410,0.5765,2684.8,2684.6,0.74485]
[1739429429609,0.5765,2684.8,2684.4,45.93838316]
[1739429429910,0.5765,2684.8,2684.7,0.74485]
[1739429430112,0.5765,2684.8,2684.6,0.74487]
[1739429430307,3.16e-06,2684.9,2684.6,7.01430397]
[1739429430514,3.2078,2685.5,2685.3,0.74468]
[1739429430714,3.2078,2685.5,2685.2,1.923]
[1739429431012,0.74466,2685.4,2685.2,1.923]
[1739429431408,3.95244,2685.5,2685.2,1.923]
[1739429431604,3.2078,2685.5,2685.2,1.923]
[1739429432011,3.2078,2685.5,2685.2,2.66771]
[1739429432211,3.95243,2685.5,2685.2,1.923]
[1739429432406,3.2078,2685.5,2685.2,1.923]
[1739429433107,0.584,2685.4,2685.2,1.923]
[1739429433311,0.74468,2685.3,2684.8,0.74481]
[1739429433512,3.2078,2685.2,2684.8,1.917]
[1739429433906,3.95252,2685.2,2684.8,1.917]
[1739429434306,3.2078,2685.2,2684.8,1.917]
[1739429434507,3.2078,2684.9,2684.8,1.917]
[1739429434708,3.2078,2685.2,2684.8,1.917]
[1739429434907,3.95251,2685.2,2684.8,1.917]
[1739429435513,3.95252,2685.2,2684.8,2.6618]
[1739429435711,3.2078,2685.2,2684.8,1.917]
[1739429435917,3.2078,2685.2,2684.8,2.6618]
[1739429436117,3.2078,2685.2,2684.8,1.917]
[1739429436319,3.2078,2685.2,2685.1,0.74474]
[1739429436716,3.2078,2685.2,2685.0,0.74475]
[1739429436914,3.2078,2685.2,2684.8,1.917]
[1739429437117,3.2078,2685.2,2685.1,0.74474]
[1739429437316,3.2078,2685.2,2685.0,0.74476]
[1739429437519,3.2078,2685.2,2684.9,0.74478]
[1739429437809,3.2078,2685.2,2685.1,0.74474]
[1739429438316,3.2078,2685.5,2685.4,0.74466]
[1739429438511,3.2078,2685.5,2684.9,2.41159]
[1739429438722,3.2078,2685.5,2685.3,0.74467]
[1739429439018,3.2078,2685.5,2684.9,0.5496]
[1739429439216,0.00558316,2685.6,2685.5,0.74463]
[1739429439420,3.2078,2686.2,2686.0,0.74447]
[1739429439822,3.2078,2686.5,2686.0,3.80650397]
[1739429440116,3.2078,2686.5,2686.1,1.911]
[1739429440517,3.95215,2686.5,2686.1,1.911]
[1739429441022,3.2078,2686.2,2686.1,1.911]
[1739429441220,3.2078,2686.2,2686.0,0.00558316]
[1739429441524,1.30516,2686.1,2686.0,0.00558316]
[1739429442011,1.86456,2686.1,2686.0,0.00558316]
[1739429442211,3.2078,2686.2,2686.0,0.00558316]
[1739429442419,3.2078,2686.5,2686.4,0.74438]
[1739429442613,3.2078,2686.5,2686.2,0.74441]
[1739429442815,3.2078,2686.5,2686.1,1.91]
[1739429443217,3.2078,2686.5,2686.3,0.74439]
[1739429443417,3.2078,2686.5,2686.1,1.91]
[1739429443418,3.2078,2686.5,2686.1,2.65445]
[1739429443617,3.2078,2686.5,2686.2,0.74443]
[1739429443921,3.2078,2686.5,2686.3,0.74438]
[1739429444116,3.2078,2686.5,2686.4,0.74438]
[1739429444320,0.00558316,2686.6,2686.1,1.91]
[1739429444619,0.00558316,2686.6,2686.5,0.74435]
[1739429447724,0.00558316,2686.6,2686.4,0.74437]
[1739429448027,0.00558316,2686.6,2686.5,0.74435]
[1739429448726,3.2078,2687.1,2687.0,0.74421]
[1739429449122,0.5855,2687.3,2686.9,1.899]
[1739429449326,0.5855,2687.3,2687.2,0.74416]
[1739429449629,0.5855,2687.3,2686.9,1.899]
[1739429449834,0.5855,2687.3,2687.0,0.7442]
[1739429450331,3.95197,2687.2,2686.8,0.74426]
[1739429450522,3.2078,2686.9,2686.8,0.74426]
[1739429451723,0.5855,2687.3,2687.2,0.74416]
[1739429452125,0.5855,2687.3,2686.8,40.8]
[1739429452126,0.00558316,2687.4,2686.8,40.8]
[1739429452429,0.00558316,2687.4,2687.3,0.74413]
[1739429452631,0.00558316,2687.4,2686.8,40.8]
[1739429452928,3.95196,2687.2,2686.8,0.74425]
[1739429453129,3.95196,2687.2,2686.7,1.895]
[1739429453428,3.95196,2687.2,2686.8,0.74426]
[1739429453726,0.00558316,2687.4,2686.9,0.74424]
[1739429454029,3.2078,2687.0,2686.9,0.74424]
[1739429454223,3.2078,2687.1,2686.7,1.895]
[1739429454430,3.2078,2687.1,2687.0,0.74421]
[1739429455023,3.2078,2687.1,2686.7,1.895]
[1739429455225,3.2078,2687.1,2686.9,0.74423]
[1739429455434,3.2078,2687.1,2686.8,0.74426]
[1739429455726,0.74422,2687.0,2686.7,2.63928]
[1739429456233,0.5775,2687.0,2686.7,1.895]
[1739429456435,0.5775,2687.0,2686.8,0.74425]
[1739429456726,0.5775,2687.0,2686.2,0.5829]
[1739429456930,3.2078,2686.8,2686.6,0.74431]
[1739429457234,3.2078,2686.8,2686.3,1.885]
[1739429457432,3.2078,2686.8,2686.7,0.7443]
[1739429457629,3.2078,2687.3,2686.7,0.7443]
[1739429457826,0.00558316,2687.4,2687.3,0.74413]
[1739429458126,0.00558316,2687.4,2687.1,2.63616]
[1739429458331,0.00558316,2687.4,2687.1,2.63617]
[1739429458530,0.00558316,2687.4,2687.2,0.74415]
[1739429459033,3.2078,2687.3,2687.1,1.892]
[1739429459538,0.74416,2687.2,2687.1,1.892]
[1739429459726,0.5839,2687.2,2687.1,1.892]
[1739429460327,1.32806,2687.2,2687.1,1.892]
[1739429460939,0.5839,2687.2,2687.1,1.892]
[1739429461134,0.74424,2686.9,2686.7,1.884]
[1739429461433,3.95203,2687.0,2686.7,1.884]
[1739429461635,3.2078,2687.0,2686.7,1.884]
[1739429462235,0.5827,2686.9,2686.5,1.882]
[1739429462436,0.5827,2686.9,2686.7,0.74428]
[1739429463028,0.5827,2686.9,2686.8,0.74427]
[1739429463234,3.2078,2687.0,2686.9,0.74424]
[1739429463628,0.5839,2687.2,2687.1,0.74418]
[1739429463836,3.21338316,2687.4,2686.6,1.8608]
[1739429464037,1.1527,2688.0,2687.0,5.06833]
[1739429464232,1.1527,2688.0,2687.9,0.74396]
[1739429464426,0.5653,2688.0,2687.9,0.74396]
[1739429464737,3.2078,2688.2,2688.1,0.74391]
[1739429465037,3.2078,2688.6,2687.8,0.5863]
[1739429465235,0.00558316,2688.4,2688.3,0.74385]
[1739429465438,0.00558316,2688.4,2688.3,2.63585]
[1739429466429,3.2078,2688.6,2688.3,1.892]
[1739429466626,3.2078,2689.7,2688.5,7.67557411]
[1739429466835,3.2078,2689.7,2688.8,3.2078]
[1739429467125,3.2078,2689.7,2688.9,5.0968]
[1739429467326,3.2078,2689.7,2688.9,1.889]
[1739429467533,3.2078,2689.3,2688.9,1.889]
[1739429467738,0.00366103,2689.6,2689.0,0.74364]
[1739429467937,0.00366103,2689.6,2689.1,40.8]
[1739429468639,0.00366103,2689.6,2688.9,1.889]
[1739429469146,0.00366103,2689.6,2688.9,43.43266]
[1739429469540,0.74716103,2689.6,2688.9,43.43266]
[1739429469835,0.00366103,2689.6,2689.0,0.74365]
[1739429470239,0.74716103,2689.6,2689.0,0.74365]
[1739429470436,0.00366103,2689.6,2688.9,42.689]
[1739429470636,0.00366103,2689.6,2688.9,45.8968]
[1739429470838,0.00366103,2689.6,2689.0,0.74365]
[1739429470839,0.74718103,2689.6,2689.0,0.74365]
[1739429471148,0.00366103,2689.6,2688.9,45.8968]
[1739429471440,3.2078,2689.4,2689.0,0.74366]
[1739429471839,3.2078,2689.4,2688.9,5.0968]
[1739429472141,3.2078,2689.4,2689.0,0.74366]
[1739429472538,3.2078,2689.4,2688.9,5.0968]
[1739429472740,1.3097,2689.3,2688.9,1.889]
[1739429472935,0.5661,2689.3,2688.6,3.6821]